Cogmind - Beta 15 @@@ ROGUE MODE // 2025.06.15 @ 20:27:23 Player: aloola Result: Destroyed by as-25656 with Assembled Blade Performance ------------- Evolutions (0) 0 Regions Visited (0) 0 Robots Destroyed (7) 35 Value Destroyed (30) 30 Prototype IDs (0) 0 Alien Tech Used (0) 0 Bonus (0) 0 TOTAL SCORE: 65 Bonus ------- None Cogmind --------- Core Integrity 0/250 Matter 300/300 Energy 98/100 System Corruption 0% Temperature Cool (0) Movement Core (50) Location -11/Scrapyard Parts ------- > --- POWER (1) -------- (None) > --- PROPULSION (2) --- Light Treads > --- UTILITY (2) ------ Improved Terrain Scanner > --- WEAPON (2) ------- Assault Rifle > --- INVENTORY (5) ---- Aluminum Leg Aluminum Leg Small Matter Pod (50) Light Assault Rifle Mining Laser Peak State ------------ > --- POWER ------------ Ion Engine > --- PROPULSION ------- Light Treads Light Treads > --- UTILITY ---------- Small Storage Unit Improved Terrain Scanner > --- WEAPON ----------- Assault Rifle Assault Rifle > --- INVENTORY -------- Light Ion Engine Aluminum Leg Aluminum Leg Compact Wheel Small Matter Pod Seismic Detector Light Assault Rifle Mining Laser [Rating: 9] Favorites ----------- Power Ion Engine Engine Ion Engine Propulsion Light Treads Treads Light Treads Utility Small Storage Unit Device Improved Terrain Scanner Storage Small Storage Unit Weapon Assault Rifle Ballistic Gun Assault Rifle Build | -11 ------- Run | Yrd Slots Evolved . | . Power . | . Propulsion . | . Utility . | . Weapon . | . Parts Attached 8 | 8 Power 1 | 1 Engine 1 | 1 Core . | . Reactor . | . Propulsion 2 | 2 Treads 2 | 2 Leg . | . Wheel . | . Hover . | . Flight . | . Utility 3 | 3 Device 2 | 2 Storage 1 | 1 Processor . | . Hackware . | . Protection . | . Artifact . | . Weapon 2 | 2 Energy Gun . | . Energy Cannon . | . Ballistic Gun 2 | 2 Ballistic Cannon . | . Launcher . | . Special Weapon . | . Impact Weapon . | . Slashing Weapon . | . Piercing Weapon . | . Special Melee Weapon . | . Unidentified Prototypes . | . Parts Lost 2 | 2 Power . | . Propulsion 1 | 1 Utility . | . Weapon 1 | 1 Highest Loss Streak 2 | 2 To Critical Strikes . | . Average Backups 7 | 7 Power . | . Propulsion 3 | 3 Utility 1 | 1 Weapon 1 | 1 Tool/Special . | . Unused Backups 7 | 7 Power 1 | 1 Propulsion 3 | 3 Utility 1 | 1 Weapon 2 | 2 Tool/Special . | . Average Slot Usage (%) . | . Peak Build Rating 9 | 9 Average Rating 8 | 8 On Entrance . | . Naked Turns . | . Heaviest Build 15 | 15 Greatest Support 40 | 40 Greatest Overweight (x) . | . Average Overweight (x) . | . Largest Inventory Capacity 8 | 8 Average Capacity 7 | 7 Most Carried 8 | 8 Average Carried 7 | 7 Final Capacity 5 | 5 Final Carried 5 | 5 Class Distribution -------------------- None Dominant Class ---------------- None Resources | -11 ----------- Run | Yrd Matter Collected 315 | 315 Remotely . | . Salvage Created 121 | 121 Parts 11 | 11 Haulers Intercepted . | . Recyclers Shooed . | . Parts Field Recycled . | . Retrieved Matter . | . Parts Self-Destructed . | . Prevented . | . Kills | -11 ------- Run | Yrd Combat Hostiles Destroyed . | . Classes Destroyed 3 | 3 Worker 3 | 3 Tunneler 3 | 3 Recycler 1 | 1 Best Kill Streak 2 | 2 Combat Bots Only . | . Max Kills in Single Turn 1 | 1 Gunslinging . | . Exploded . | . Melee . | . Uniques/NPCs Destroyed . | . Combat | -11 -------- Run | Yrd Hostile Shots Fired 45 | 45 Missed 13 | 13 Hits 32 | 32 Melee 3 | 3 Projectile 29 | 29 AOE 12 | 12 Damage Taken 807 | 807 Core 263 | 263 Absorbed by Shields . | . Core Remaining (%) . | . Volleys Fired 11 | 11 Largest 2 | 2 Hottest 40 | 40 Shots Fired 22 | 22 Gun 22 | 22 Cannon . | . Launcher . | . Special . | . Kinetic 22 | 22 Thermal . | . Explosive . | . Electromagnetic . | . Robot Hit Streak 4 | 4 Robot Miss Streak 2 | 2 Penetration Max . | . Secondary Targets . | . Shots Hit Robots 14 | 14 Core Hits 7 | 7 Critical Kills . | . Critical Parts Destroyed 1 | 1 Critical Strikes 1 | 1 Destroy 1 | 1 Melee Attacks . | . Impact . | . Slashing . | . Piercing . | . Sneak Attacks . | . Combat Hostiles . | . Follow-up Attacks . | . Damage Inflicted 338 | 338 Guns 196 | 196 Cannons . | . Explosions . | . Melee . | . Ramming 142 | 142 Kinetic 196 | 196 Thermal . | . Explosive . | . Electromagnetic . | . Impact . | . Slashing . | . Piercing . | . Highest Corruption . | . Average Corruption . | . Corruption Purged . | . Corruption Blocked . | . Overload Shots . | . Overflow Damage 2 | 2 Projectiles . | . Explosions . | . Melee 2 | 2 Knockbacks . | . Impact . | . Kinetic . | . Secondary . | . Self-Inflicted Damage 4 | 4 Shots . | . Rammed 46 | 46 Targets Rammed 48 | 48 Kicked . | . Crushed 2 | 2 Highest Temperature 2 | 2 Average Temperature 2 | 2 Received Heat Transfer 120 | 120 Siege Activations . | . Martial Activations . | . Shielding Activations . | . Robots Disrupted . | . Combat Hostiles . | . Robots Corrupted . | . Combat Hostiles . | . Parts Fried . | . Impact Corruptions 1 | 1 Robots Melted . | . Combat Hostiles . | . Parts Melted . | . Heat Transferred . | . Parts Sabotaged . | . Parts Stolen . | . Parts Stripped . | . Power Chain Reactions . | . Alert | -11 ------- Run | Yrd Maximum Alert Level . | . Low Security (%) 100 | 100 Level 1 . | . Level 2 . | . Level 3 . | . Level 4 . | . Level 5 . | . High Security . | . Max Security . | . Peak Influence 5 | 5 Initial . | . Average . | . Influence Increases 35 | 35 Destroy 0b10 Robot/NC 35 | 35 Influence Decreases 35 | 35 Time Decay 35 | 35 Squads Dispatched . | . Investigation . | . Extermination . | . Reinforcement . | . Assault . | . Garrison . | . Intercept . | . Searches Triggered . | . Construction Impeded . | . Haulers Reinforced . | . Active Scanning Responses . | . Cargo Convoy Interrupts . | . Stealth | -11 --------- Run | Yrd Distress Signals . | . Communications Jammed . | . Distress Signals . | . Times Spotted 21 | 21 Peak Tracking Total 19 | 19 Tactical Retreats . | . Traps | -11 ------- Run | Yrd Traps Triggered . | . Indirectly . | . Trap Hack Attempts . | . Triggered . | . Disarmed . | . Reprogrammed . | . Reused . | . Traps Extracted . | . Installed . | . Triggered . | . Machines | -11 ---------- Run | Yrd Machines Disabled . | . Max in Single Turn . | . Machines Repaired . | . Machines Dismantled . | . Machines Sabotaged . | . Overloaded Fab Kills . | . Hacking | -11 --------- Run | Yrd Machines Accessed . | . Terminals . | . Fabricators . | . Repair Stations . | . Recycling Units . | . Scanalyzers . | . Garrison Access . | . Total Hacks . | . Successful . | . Failed . | . Catastrophic . | . Database Lockouts . | . Manual . | . Terminals . | . Fabricators . | . Repair Stations . | . Recycling Units . | . Scanalyzers . | . Garrison Access . | . Terminal Hacks . | . Fabricator Hacks . | . Repair Station Hacks . | . Recycling Unit Hacks . | . Scanalyzer . | . Garrison Access Hacks . | . Unauthorized Hacks . | . Terminals . | . Fabricators . | . Repair Stations . | . Recycling Units . | . Scanalyzers . | . Garrison Access . | . Data Cores Recovered . | . Used . | . Hacking Detections . | . Full Trace Events . | . Feedback Events . | . Feedback Blocked . | . Robot Schematics Acquired . | . Robots Built . | . Authchips . | . Time . | . Total Robot Build Rating . | . Part Schematics Acquired . | . Parts Built . | . Authchips . | . Time . | . Total Part Build Rating . | . Parts Repaired . | . Time . | . Parts Recycled . | . Recycled Matter . | . Retrieved Matter . | . Retrieved Components . | . Parts Scanalyzed . | . Part Schematics Acquired . | . Parts Damaged . | . Bothacking | -11 ------------ Run | Yrd Used RIF Installer . | . Robots Hacked . | . Non-combat . | . Combat . | . Robot Hacks Applied . | . Relay Couplers Released . | . Fabnet Peak Effective % . | . Robots Rewired . | . Allies Hacked . | . Hacks Repelled . | . Allies | -11 -------- Run | Yrd Total Allies . | . Largest Group . | . Highest-Rated Group . | . Highest-Rated Ally . | . Total Orders . | . Ally Attacks . | . Total Damage . | . Kills . | . Allies Corrupted . | . Allies Melted . | . Intel | -11 ------- Run | Yrd Active Infowar (turns) 1393 | 1393 Terrain 1145 | 1145 Seismic 248 | 248 Robot Analysis Total . | . Derelict Logs Recovered . | . Drone Launches . | . Drone Recoveries . | . Exploration | -11 ------------- Run | Yrd Turns Passed 1529 | 1529 Spaces Moved 861 | 861 Core 35 | 35 Treads 826 | 826 Legs . | . Wheels . | . Hover . | . Flight . | . Fastest Speed 50 | 50 Average Speed 155 | 155 Slowest Speed 160 | 160 Overloaded Moves . | . Propulsion Burnouts . | . Robots Hopped . | . Potential Cave-ins . | . Cave-ins Triggered . | . Exploration Rate (%) 40 | 40 Regions Visited . Branch Regions . Pre-discovered Areas . | . Known Exits Taken . | . Unknown Exits Taken . | . Scrap Searched . | . Spaces Dug . | . Terrain Destroyed . | . Melee . | . Projectile . | . AOE . | . Terrain Rammed . | . Walls Destroyed . | . Machines Disabled . | . Actions | -11 --------- Run | Yrd Total 999 | 999 Wait 60 | 60 Move 861 | 861 Hop . | . Pick Up 9 | 9 Fast Attach 6 | 6 Attach 1 | 1 Detach . | . Swap 1 | 1 Drop 2 | 2 Fire 11 | 11 Melee . | . Ram 2 | 2 Kick . | . Crush 46 | 46 Escape Stasis . | . Rewire . | . Trap . | . Miscellaneous . | . Route ------- -11/Scrapyard (discovered 1 exit: [*Mat]) History --------- Turn | Location | Event 19 | -11/Scrapyard | Discovered new exit (range 16) 1419 | -11/Scrapyard | Assembled infested the area 1435 | -11/Scrapyard | Core integrity fell below 50% 1517 | -11/Scrapyard | Core integrity fell below 20% 1530 | -11/Scrapyard | Destroyed by as-25656 with Assembled Blade Last Messages --------------- 01017_ T-07 Excavator is excavating. 01075_ Slammed into K-01 Serf. 01131_ T-07 Excavator is excavating. 01419_ ALERT: Infestation in the scrapyard, dispatching Demolisher response squad. [Achievement: Curiosity Killed The Cat] 01426_ C-30 ARC bursts open, deploying its payload. 01426_ D-53 Grenadier unfolds itself. 01427_ The unstable cave ceiling collapses. 01428_ Slammed into D-53 Grenadier. 01436_ D-53 Grenadier destroyed. 01440_ The unstable cave ceiling collapses. 01509_ Assault Rifle destroyed. 01513_ Dropped Sml. Storage Unit. 01513_ Dropped Ion Engine. 01514_ The unstable cave ceiling collapses. 01525_ Slammed into as-41484. 01528_ Slammed into as-76258. 01530_ Lgt. Treads destroyed. 01530_ as-78059 destroyed. Map ----- +----------------------------------------------------+ | | | | | | | | | | | | | | | ?????????????????????????????????????? | | ?????????????????????????????????????? | | ?????????????????????????????????????? | | ?????????????????????????????????????? | | ?????????????????????????????????????? | | ???????????????????????##????????????? | | ?????????????????????? "## ?????????? | | ?????????????????#???? " ?????????? | | ?????????????????????? " ?????????? | | ?????????????????????? " ?????????? | | ??????????????????????? " ??????????? | | ???????????????????????" ??????????? | | ??????????????????????? aa ??????????? | | ???????????????????????# #?######???? | | ???????????????????????# #? #???? | | ??????######?????????#?# # #???? | | ??????# ??####???#aa# ?????? | | ???#??# ?# #???#aa ????#???? | | ??????# # #####a@#??????????? | | ??????# a aa #??????????? | | ??????# # %aa %a #??????????? | | ??????# ???????# # ### ##??????????? | | ??????# ????#??# ###?###?#?????????? | | ??????# ???????# #?????????????????? | | #??#??# #??????## #?????????????????? | | ?#??# #???#???# #?????????????????? | | ### #???????# #?????????????????? | | ### ##?????## ##????????????????? | | # ####### #????????????????? | | #????????????????? | | # #????????????????? | | # ### ####### ##????????????????? | | ??#### ###????## ##?????????????????? | | ###### #???????# ?????????????????? | | # #?#???#?# ????????????????? | | # #???????# ??????????????? | | # #???????# #?????????????? | | # ##??????## ##?????????????? | | #**#??????##?#####??????????????? | | #=!##??##???????????????????????? | | ###### !#?#???#?#?#???#??????????????? | | # ## ##?###???????????????????????? | | # ## #??#?????????#???????????????? | +----------------------------------------------------+ Best States ------------- Heat Dissipation 25 Energy Generation 10 Energy Capacity 250 Matter Stores 300 Matter Capacity 300 Sight Range 16 Terrain Scan Range 16 Terrain Scan Density 10 Evasion (%) 50 Recoil Reduction 2 Item Schematics ----------------- None Robot Schematics ------------------ None Fabricated ------------ Nothing Repaired ---------- Nothing Alien Tech Used ----------------- None Achievements -------------- Curiosity Killed The Cat Challenges ------------ None Game ------ Seed ControlSalvagingArmor Manual? 0 Play Time 00:13:40 Cumulative 109.0 hours Start 2025.06.15 @ 20:20:25 End 2025.06.15 @ 20:27:23 Sessions 0 Manual Loads 0 Difficulty Rogue Special Mode None Game No. 49 Rogue 49 Adventurer 0 Explorer 0 Win Type - Total 7 Types 7/0/0/0/0/0/0/0/0/0 Lore% 60 Gallery% 53 Achievement% 43 Wizard Run 0 Options --------- Layout 0 ASCII 0 Keyboard 1 Movement Numpad Keybinds 0 Fullscreen 1 Font 18/Cog Map View 76x50 Zoom Use 0% Tactical HUD 1 Map Filters NONE Filters NONE Steam 1 RUN: 9e702ab8-47e8-4291-8360-3cda69218d93